fUSD/lending_fUSD_20250629
["ID","MTS","AMOUNT","RATE_DAILY","PERIOD"]
[368450298,1751182238772,-490.0,0.00027397,3]
[368450299,1751182238781,-490.0,0.00027397,3]
[368450301,1751182238790,-490.0,0.00027397,3]
[368450302,1751182238799,-490.0,0.00027397,3]
[368450303,1751182238808,-490.0,0.00027397,3]
[368450304,1751182238817,-777.88,0.00027397,3]
[368450305,1751182238826,-490.0,0.00027397,3]
[368450306,1751182238836,-490.0,0.00027397,3]
[368450307,1751182238845,-167.36016629,0.00027497,2]
[368450308,1751182238854,-3939.08507847,0.00027498,2]
[368450333,1751182239087,-400.0,0.000275,10]
[368450336,1751182239102,-382.056584,0.00027507,2]
[368450338,1751182239111,-152.63619731,0.00027507,2]
[368450340,1751182239121,-964.76709245,0.00027507,2]
[368450342,1751182239131,-490.0,0.00027508,3]
[368450344,1751182239140,-799.62,0.00027508,3]
[368450346,1751182239149,-490.0,0.00027508,3]
[368450348,1751182239159,-490.0,0.00027508,3]
[368450350,1751182239174,-490.0,0.00027508,3]
[368450352,1751182239185,-490.28,0.00027508,3]
[368450354,1751182239195,-492.54,0.00027508,3]
[368450356,1751182239204,-490.0,0.00027508,3]
[368450357,1751182239213,-512.39914074,0.00027516,2]
[368450360,1751182239223,-202.92775587,0.00027521,17]
[368450361,1751182239233,-48584.30594204,0.00027595,10]
[368450363,1751182239243,-443.23358507,0.00027596,2]
[368450365,1751182239252,-129922.387126,0.00027597,2]
[368450367,1751182239262,-152.0,0.00027598,2]
[368450369,1751182239271,-964.76709245,0.000276,2]
[368450371,1751182239280,-800.0,0.000276,10]
[368450373,1751182239289,-490.0,0.00027604,3]
[368450375,1751182239299,-490.0,0.00027604,3]
[368450377,1751182239308,-490.0,0.00027604,3]
[368450379,1751182239317,-490.0,0.00027604,3]
[368450381,1751182239326,-490.0,0.00027604,3]
[368450383,1751182239335,-490.0,0.00027604,3]
[368450385,1751182239344,-490.0,0.00027604,3]
[368450387,1751182239353,-490.0,0.00027604,3]
[368450389,1751182239363,-515.65,0.00027604,3]
[368450391,1751182239373,-490.0,0.00027604,3]
[368450393,1751182239382,-2086.22,0.00027604,3]
[368450395,1751182239392,-490.0,0.00027604,3]
[368450397,1751182239402,-490.0,0.00027604,3]
[368450399,1751182239411,-490.0,0.00027604,3]
[368450401,1751182239421,-4978.16,0.00027604,3]
[368450403,1751182239430,-490.0,0.00027604,3]
[368450405,1751182239439,-1878.24,0.00027604,3]
[368450407,1751182239448,-490.0,0.00027604,3]
[368450409,1751182239458,-490.0,0.00027604,3]
[368450411,1751182239467,-490.0,0.00027604,3]
[368450413,1751182239477,-490.0,0.00027604,3]
[368450415,1751182239486,-490.0,0.00027604,3]
[368450417,1751182239496,-2468.25,0.00027604,3]
[368450419,1751182239507,-574.09991409,0.00027604,3]
[368450421,1751182239516,-490.0,0.00027604,3]
[368450423,1751182239527,-2136.44,0.00027604,3]
[368450425,1751182239536,-548.4,0.00027604,3]
[368450427,1751182239545,-7535.42,0.00027604,3]
[368450429,1751182239555,-490.0,0.00027604,3]
[368450431,1751182239565,-490.0,0.00027607,3]
[368450433,1751182239574,-490.0,0.00027607,3]
[368450435,1751182239584,-490.0,0.00027607,3]
[368450437,1751182239594,-659.74,0.00027607,3]
[368450439,1751182239603,-490.0,0.00027607,3]
[368450441,1751182239613,-490.0,0.00027607,3]
[368450443,1751182239622,-490.0,0.00027607,3]
[368450445,1751182239631,-508.77,0.00027607,3]
[368450447,1751182239641,-652.71,0.00027607,3]
[368450449,1751182239650,-490.0,0.00027607,3]
[368450451,1751182239659,-2322.34,0.00027607,3]
[368450453,1751182239669,-1347.64,0.00027607,3]
[368450455,1751182239678,-490.0,0.00027607,3]
[368450457,1751182239688,-490.0,0.00027607,3]
[368450459,1751182239698,-490.0,0.00027607,3]
[368450461,1751182239707,-2628.71,0.00027607,3]
[368450463,1751182239717,-526.04,0.00027607,3]
[368450465,1751182239726,-467.61133157,0.00027607,3]
[368450467,1751182239735,-490.0,0.00027607,3]
[368450469,1751182239745,-478.89274564,0.00027607,3]
[368450471,1751182239754,-490.0,0.00027607,3]
[368450473,1751182239763,-490.0,0.00027607,3]
[368450475,1751182239773,-1726.56,0.00027607,3]
[368450477,1751182239782,-645.02,0.00027607,3]
[368450479,1751182239791,-517.4,0.00027607,3]
[368450481,1751182239801,-591.71,0.00027607,3]
[368450483,1751182239810,-1536.91,0.00027607,3]
[368450485,1751182239820,-490.0,0.00027607,3]
[368450487,1751182239829,-1210.34,0.00027607,3]
[368450489,1751182239839,-200.0,0.00027607,3]
[368450491,1751182239848,-915.7,0.00027607,3]
[368450493,1751182239858,-1599.27,0.00027607,3]
[368450495,1751182239867,-490.0,0.00027607,3]
[368450497,1751182239876,-1996.5,0.00027607,3]
[368450499,1751182239886,-1349.21,0.00027607,3]
[368450501,1751182239895,-1183.45,0.00027607,3]
[368450503,1751182239905,-243.28871134,0.00027607,3]
[368450505,1751182239914,-490.0,0.00027607,3]
[368450507,1751182239923,-2996.24,0.00027607,3]
[368450509,1751182239932,-986.41,0.00027607,3]
[368450511,1751182239942,-490.0,0.00027607,3]
[368450513,1751182239951,-1708.84,0.00027607,3]
[368450514,1751182239961,-490.0,0.00027607,3]
[368450515,1751182239970,-1464.97,0.00027607,3]
[368450516,1751182239980,-1068.44,0.00027607,3]
[368450517,1751182239990,-1269.67,0.00027607,3]
[368450518,1751182240000,-1547.48,0.00027607,3]
[368450519,1751182240010,-627.18,0.00027607,3]
[368450520,1751182240019,-1632.32,0.00027607,3]
[368450521,1751182240029,-1103.54,0.00027607,3]
[368450522,1751182240039,-490.0,0.00027607,3]
[368450523,1751182240048,-490.0,0.00027607,3]
[368450524,1751182240058,-2740.12,0.00027607,3]
[368450525,1751182240067,-769.51,0.00027607,3]
[368450526,1751182240077,-490.0,0.00027607,3]
[368450527,1751182240087,-490.0,0.00027607,3]
[368450528,1751182240097,-1214.36,0.00027607,3]
[368450529,1751182240107,-490.0,0.00027607,3]
[368450530,1751182240117,-442.45099863,0.00027607,3]
[368450532,1751182240127,-1013.34,0.00027607,3]
[368450534,1751182240136,-500.0,0.00027607,3]
[368450536,1751182240146,-490.0,0.00027607,3]
[368450538,1751182240158,-1528.6,0.00027607,3]
[368450540,1751182240170,-490.0,0.00027607,3]
[368450542,1751182240180,-490.0,0.00027607,3]
[368450544,1751182240190,-1298.66,0.00027607,3]
[368450546,1751182240199,-490.0,0.00027607,3]
[368450548,1751182240209,-1041.03,0.00027607,3]
[368450550,1751182240219,-490.0,0.00027607,3]
[368450552,1751182240229,-490.0,0.00027607,3]
[368450554,1751182240239,-741.16,0.00027607,3]
[368450556,1751182240249,-490.0,0.00027607,3]
[368450558,1751182240259,-900.77,0.00027607,3]
[368450560,1751182240269,-170.0,0.00027607,3]
[368450562,1751182240278,-326.50770705,0.00027607,3]
[368450564,1751182240288,-490.0,0.00027607,3]
[368450566,1751182240297,-961.94,0.00027607,3]
[368450568,1751182240307,-2547.46,0.00027607,3]
[368450570,1751182240316,-490.0,0.00027607,3]
[368450572,1751182240326,-1257.47,0.00027607,3]
[368450574,1751182240335,-490.0,0.00027607,3]
[368450577,1751182240355,-490.0,0.00027607,3]
[368450579,1751182240365,-619.51,0.00027607,3]
[368450581,1751182240375,-490.0,0.00027607,3]
[368450583,1751182240384,-1256.71,0.00027607,3]
[368450585,1751182240393,-496.04682604,0.00027607,3]
[368450587,1751182240403,-490.0,0.00027607,3]
[368450589,1751182240412,-764.75,0.00027607,3]
[368450591,1751182240422,-1126.57,0.00027607,3]
[368450593,1751182240432,-594.13549488,0.00027607,3]
[368450595,1751182240441,-490.0,0.00027607,3]
[368450598,1751182240451,-490.0,0.00027607,3]
[368450599,1751182240460,-1937.9,0.00027607,3]
[368450602,1751182240470,-490.0,0.00027607,3]
[368450604,1751182240479,-490.0,0.00027607,3]
[368450605,1751182240489,-490.0,0.00027607,3]
[368450608,1751182240499,-490.0,0.00027607,3]
[368450610,1751182240508,-518.43,0.00027607,3]
[368450612,1751182240517,-490.0,0.00027607,3]
[368450614,1751182240527,-490.0,0.00027607,3]
[368450616,1751182240537,-171.22050093,0.00027607,3]
[368450618,1751182240546,-490.0,0.00027607,3]
[368450620,1751182240555,-490.0,0.00027607,3]
[368450622,1751182240565,-490.0,0.00027607,3]
[368450624,1751182240575,-490.0,0.00027607,3]
[368450626,1751182240584,-1121.66,0.00027607,3]
[368450628,1751182240593,-490.0,0.00027607,3]
[368450630,1751182240603,-490.0,0.00027607,3]
[368450632,1751182240614,-490.0,0.00027607,3]
[368450634,1751182240624,-490.0,0.00027607,3]
[368450636,1751182240633,-699.3,0.00027607,3]
[368450638,1751182240642,-490.0,0.00027607,3]
[368450640,1751182240653,-363.97537862,0.00027607,3]
[368450642,1751182240662,-168.44447662,0.00027607,3]
[368450644,1751182240671,-490.0,0.00027607,3]
[368450646,1751182240681,-490.0,0.00027607,3]
[368450648,1751182240691,-490.0,0.00027607,3]
[368450650,1751182240700,-492.30205184,0.00027607,3]
[368450652,1751182240709,-490.0,0.00027607,3]
[368450654,1751182240719,-1551.2,0.00027607,3]
[368450656,1751182240729,-490.0,0.00027607,3]
[368450658,1751182240738,-490.0,0.00027607,3]
[368450660,1751182240747,-490.0,0.00027607,3]
[368450662,1751182240757,-892.47,0.00027607,3]
[368450664,1751182240766,-490.0,0.00027607,3]
[368450666,1751182240776,-490.0,0.00027607,3]
[368450668,1751182240786,-2782.87,0.00027607,3]
[368450670,1751182240795,-490.0,0.00027607,3]
[368450672,1751182240804,-555.12387082,0.00027607,3]
[368450674,1751182240814,-1321.79,0.00027607,3]
[368450676,1751182240824,-490.0,0.00027607,3]
[368450678,1751182240833,-1573.3,0.00027607,3]
[368450680,1751182240843,-569.0,0.00027607,3]
[368450682,1751182240852,-490.0,0.00027607,3]
[368450684,1751182240861,-490.0,0.00027607,3]
[368450686,1751182240871,-1214.94,0.00027607,3]
[368450688,1751182240881,-554.38,0.00027607,3]
[368450690,1751182240890,-490.0,0.00027607,3]
[368450692,1751182240900,-926.52,0.00027607,3]
[368450694,1751182240909,-490.0,0.00027607,3]
[368450696,1751182240919,-490.0,0.00027607,3]
[368450698,1751182240929,-1419.18,0.00027607,3]
[368450700,1751182240939,-490.0,0.00027607,3]
[368450702,1751182240948,-490.0,0.00027607,3]
[368450704,1751182240959,-1795.78,0.00027607,3]
[368450707,1751182240969,-2190.73,0.00027607,3]
[368450709,1751182240978,-490.0,0.00027607,3]
[368450711,1751182240988,-490.0,0.00027607,3]
[368450713,1751182240997,-490.0,0.00027607,3]
[368450715,1751182241008,-1308.62,0.00027607,3]
[368450716,1751182241017,-490.0,0.00027607,3]
[368450719,1751182241027,-5038.91,0.00027607,3]
[368450720,1751182241036,-490.0,0.00027607,3]
[368450723,1751182241047,-490.0,0.00027607,3]
[368450725,1751182241056,-2195.476821,0.00027607,3]
[368450726,1751182241069,-158.454064,0.00027607,3]
[368450728,1751182241079,-1062.78,0.00027607,3]
[368450731,1751182241089,-1918.05,0.00027607,3]
[368450732,1751182241098,-490.0,0.00027607,3]
[368450734,1751182241108,-490.0,0.00027607,3]
[368450736,1751182241118,-367.73829,0.00027607,3]
[368450738,1751182241128,-151.887036,0.00027607,3]
[368450740,1751182241137,-176.49197133,0.00027607,3]
[368450743,1751182241148,-490.0,0.00027607,3]
[368450745,1751182241159,-490.0,0.00027607,3]
[368450747,1751182241171,-490.0,0.00027607,3]
[368450749,1751182241181,-2779.41,0.00027607,3]
[368450750,1751182241190,-490.0,0.00027607,3]
[368450753,1751182241200,-9441.19,0.00027607,3]
[368450755,1751182241209,-170.11476156,0.00027607,3]
[368450757,1751182241218,-2940.912066,0.00027607,3]
[368450759,1751182241229,-2450.95,0.00027607,3]
[368450761,1751182241239,-490.0,0.00027607,3]
[368450763,1751182241249,-490.0,0.00027607,3]
[368450765,1751182241259,-490.0,0.00027607,3]
[368450767,1751182241268,-1090.76,0.00027607,3]
[368450769,1751182241278,-490.0,0.00027607,3]
[368450771,1751182241287,-709.65,0.00027607,3]
[368450773,1751182241296,-2226.72,0.00027607,3]
[368450775,1751182241306,-490.0,0.00027607,3]
[368450777,1751182241315,-2138.51,0.00027607,3]
[368450779,1751182241325,-3209.867075,0.00027607,3]
[368450781,1751182241334,-490.0,0.00027607,3]
[368450783,1751182241343,-1417.53,0.00027607,3]
[368450785,1751182241353,-1745.41,0.00027607,3]
[368450787,1751182241362,-490.0,0.00027607,3]
[368450789,1751182241371,-2036.27,0.00027607,3]
[368450791,1751182241380,-490.0,0.00027607,3]
[368450793,1751182241390,-490.0,0.00027607,3]
[368450795,1751182241400,-490.0,0.00027607,3]
[368450797,1751182241409,-1436.09,0.00027607,3]
[368450799,1751182241418,-490.0,0.00027607,3]
[368450801,1751182241429,-490.0,0.00027607,3]
[368450803,1751182241439,-2301.62,0.00027607,3]
[368450805,1751182241449,-1622.86,0.00027607,3]
[368450807,1751182241458,-10744.09,0.00027607,3]
[368450845,1751182241807,-490.0,0.00027607,3]
[368450847,1751182241818,-490.0,0.00027607,3]
[368450849,1751182241828,-490.0,0.00027607,3]
[368450851,1751182241837,-490.0,0.00027607,3]
[368450853,1751182241847,-490.0,0.00027607,3]
[368450855,1751182241857,-490.0,0.00027607,3]
[368450858,1751182241866,-490.0,0.00027607,3]
[368450860,1751182241876,-1177.75,0.00027607,3]
[368450862,1751182241885,-2436.87,0.00027607,3]
[368450864,1751182241894,-1919.68,0.00027607,3]
[368450866,1751182241904,-2799.08,0.00027607,3]
[368450867,1751182241913,-490.0,0.00027607,3]
[368450870,1751182241922,-490.0,0.00027607,3]
[368450871,1751182241931,-490.0,0.00027607,3]
[368450874,1751182241941,-1099.67,0.00027607,3]
[368450875,1751182241950,-490.0,0.00027607,3]
[368450878,1751182241960,-2829.49,0.00027607,3]
[368450880,1751182241969,-1311.27,0.00027607,3]
[368450882,1751182241979,-490.0,0.00027607,3]
[368450883,1751182241988,-154.974835,0.00027607,3]
[368450885,1751182241998,-490.0,0.00027607,3]
[368450888,1751182242008,-1298.79,0.00027607,3]
[368450890,1751182242017,-611.0558359,0.00027607,3]
[368450892,1751182242026,-490.0,0.00027607,3]
[368450893,1751182242035,-151.887051,0.00027607,3]
[368450896,1751182242045,-220.642983,0.00027607,3]
[368450898,1751182242054,-2812.32,0.00027607,3]
[368450899,1751182242064,-2589.71,0.00027607,3]
[368450902,1751182242074,-490.0,0.00027607,3]
[368450903,1751182242083,-554.13,0.00027607,3]
[368450905,1751182242092,-490.0,0.00027607,3]
[368450907,1751182242102,-490.0,0.00027607,3]
[368450910,1751182242111,-2344.32,0.00027607,3]
[368450912,1751182242121,-153.43889,0.00027607,3]
[368450914,1751182242131,-1318.19,0.00027607,3]
[368450916,1751182242141,-490.0,0.00027607,3]
[368450918,1751182242151,-490.0,0.00027607,3]
[368450919,1751182242161,-2236.75,0.00027607,3]
[368450921,1751182242174,-1960.8,0.00027607,3]
[368450923,1751182242184,-490.0,0.00027607,3]
[368450925,1751182242194,-1862.37,0.00027607,3]
[368450927,1751182242204,-490.0,0.00027607,3]
[368450929,1751182242215,-490.0,0.00027607,3]
[368450931,1751182242225,-4588.45,0.00027607,3]
[368450933,1751182242235,-160.493354,0.00027607,3]
[368450936,1751182242245,-490.0,0.00027607,3]
[368450938,1751182242256,-490.0,0.00027607,3]
[368450940,1751182242265,-267.64587003,0.00027607,3]
[368450942,1751182242274,-341.81424652,0.00027607,3]
[368450944,1751182242284,-13062.02,0.00027607,3]
[368450946,1751182242293,-490.0,0.00027607,3]
[368450948,1751182242303,-1135.27,0.00027607,3]
[368450950,1751182242313,-180.27269996,0.00027608,3]
[368450951,1751182242323,-1012.34,0.00027608,3]
[368450954,1751182242335,-490.0,0.00027608,3]
[368450956,1751182242345,-490.0,0.00027608,3]
[368450958,1751182242354,-490.0,0.00027608,3]
[368450960,1751182242363,-490.0,0.00027608,3]
[368450962,1751182242372,-490.0,0.00027608,3]
[368450964,1751182242381,-2260.52,0.00027608,3]
[368450966,1751182242391,-1530.6,0.00027608,3]
[368450968,1751182242400,-2154.93,0.00027608,3]
[368450970,1751182242409,-2500.0,0.00027608,3]
[368450972,1751182242418,-886.28,0.00027608,3]
[368450974,1751182242427,-1930.86,0.00027608,3]
[368450976,1751182242436,-1969.92,0.00027608,3]
[368450978,1751182242445,-1372.39,0.00027608,3]
[368450980,1751182242454,-490.0,0.00027608,3]
[368450982,1751182242464,-490.0,0.00027608,3]
[368450984,1751182242474,-490.0,0.00027608,3]
[368450986,1751182242483,-490.0,0.00027608,3]
[368450988,1751182242492,-490.0,0.00027608,3]
[368450990,1751182242502,-490.0,0.00027608,3]
[368450992,1751182242511,-1425.91,0.00027608,3]
[368450993,1751182242521,-2179.7,0.00027608,3]
[368450996,1751182242530,-1435.02,0.00027608,3]
[368450998,1751182242540,-1284.69,0.00027608,3]
[368451000,1751182242549,-2961.57,0.00027608,3]
[368451001,1751182242559,-490.0,0.00027608,3]
[368451003,1751182242568,-2544.77,0.00027608,3]
[368451005,1751182242578,-490.0,0.00027608,3]
[368451007,1751182242587,-1245.79,0.00027608,3]
[368451010,1751182242596,-490.0,0.00027608,3]
[368451011,1751182242606,-367.39131361,0.00027608,3]
[368451014,1751182242615,-1321.57,0.00027608,3]
[368451015,1751182242624,-2300.75,0.00027608,3]
[368451017,1751182242633,-2011.03,0.00027608,3]
[368451019,1751182242643,-490.0,0.00027608,3]
[368451022,1751182242653,-490.0,0.00027608,3]
[368451024,1751182242662,-490.0,0.00027608,3]
[368451026,1751182242672,-2320.15,0.00027608,3]
[368451028,1751182242681,-1037.74,0.00027608,3]
[368451030,1751182242690,-2583.7,0.00027608,3]
[368451032,1751182242699,-1155.94,0.00027608,3]
[368451034,1751182242708,-2883.83,0.00027608,3]
[368451036,1751182242717,-490.0,0.00027608,3]
[368451038,1751182242727,-490.0,0.00027608,3]
[368451040,1751182242736,-1807.92,0.00027608,3]
[368451042,1751182242746,-1810.73,0.00027608,3]
[368451044,1751182242755,-601.05,0.00027608,3]
[368451046,1751182242764,-1821.33,0.00027608,3]
[368451048,1751182242774,-2243.07,0.00027608,3]
[368451050,1751182242784,-490.0,0.00027608,3]
[368451051,1751182242793,-1737.55,0.00027608,3]
[368451053,1751182242802,-1679.85,0.00027608,3]
[368451056,1751182242812,-2079.58,0.00027608,3]
[368451057,1751182242821,-2091.86,0.00027608,3]
[368451060,1751182242830,-490.0,0.00027608,3]
[368451062,1751182242840,-793.31,0.00027608,3]
[368451064,1751182242849,-500.0,0.00027608,3]
[368451065,1751182242858,-500.0,0.00027608,3]
[368451068,1751182242868,-500.0,0.00027608,3]
[368451069,1751182242878,-500.0,0.00027608,3]
[368451072,1751182242887,-1873.65,0.00027608,3]
[368451074,1751182242896,-1518.56,0.00027608,3]
[368451076,1751182242905,-1380.13,0.00027608,3]
[368451078,1751182242914,-1874.18,0.00027608,3]
[368451080,1751182242923,-490.0,0.00027608,3]
[368451082,1751182242933,-1299.19,0.00027608,3]
[368451084,1751182242942,-546.34,0.00027608,3]
[368451086,1751182242951,-2122.4,0.00027608,3]
[368451088,1751182242961,-3200.43,0.00027608,3]
[368451090,1751182242970,-1835.86,0.00027608,3]
[368451092,1751182242980,-4705.46,0.00027608,3]
[368451094,1751182242989,-490.15,0.00027608,3]
[368451096,1751182242998,-2941.76,0.00027608,3]
[368451098,1751182243007,-806.93,0.00027608,3]
[368451100,1751182243016,-490.0,0.00027608,3]
[368451102,1751182243027,-3406.06,0.00027608,3]
[368451104,1751182243036,-4388.37,0.00027608,3]
[368451106,1751182243046,-2455.53,0.00027608,3]
[368451108,1751182243055,-3125.81,0.00027608,3]
[368451110,1751182243064,-1867.83,0.00027608,3]
[368451112,1751182243074,-2248.55,0.00027608,3]
[368451114,1751182243084,-2165.49,0.00027608,3]
[368451116,1751182243093,-490.0,0.00027608,3]
[368451118,1751182243103,-3729.06,0.00027608,3]
[368451120,1751182243112,-2702.4,0.00027608,3]
[368451121,1751182243122,-711.24,0.00027608,3]
[368451124,1751182243131,-6737.6,0.00027608,3]
[368451125,1751182243140,-789.86,0.00027608,3]
[368451128,1751182243150,-2289.46,0.00027608,3]
[368451129,1751182243159,-1131.65,0.00027608,3]
[368451132,1751182243172,-490.0,0.00027608,3]
[368451134,1751182243182,-1251.22,0.00027608,3]
[368451136,1751182243192,-1554.79,0.00027608,3]
[368451138,1751182243201,-2936.86,0.00027608,3]
[368451140,1751182243210,-687.13,0.00027608,3]
[368451141,1751182243219,-2880.67,0.00027608,3]
[368451143,1751182243229,-1874.07,0.00027608,3]
[368451146,1751182243239,-2301.47,0.00027608,3]
[368451148,1751182243249,-490.0,0.00027608,3]
[368451150,1751182243258,-2611.19,0.00027608,3]
[368451152,1751182243268,-1808.02,0.00027608,3]
[368451154,1751182243278,-490.0,0.00027608,3]
[368451156,1751182243287,-490.0,0.00027608,3]
[368451158,1751182243297,-8804.63,0.00027608,3]
[368451160,1751182243307,-1126.61,0.00027608,3]
[368451162,1751182243316,-7374.62,0.00027608,3]
[368451166,1751182243327,-1766.37,0.00027608,3]
[368451170,1751182243336,-11501.68,0.00027608,3]
[368451173,1751182243346,-10168.25,0.00027608,3]
[368451176,1751182243355,-1338.4,0.00027608,3]
[368451179,1751182243365,-490.0,0.00027608,3]
[368451182,1751182243375,-4148.45,0.00027608,3]
[368451185,1751182243385,-2806.96,0.00027608,3]
[368451188,1751182243394,-1396.59,0.00027608,3]
[368451191,1751182243404,-490.0,0.00027608,3]
[368451194,1751182243413,-5920.07,0.00027608,3]
[368451197,1751182243422,-2535.69,0.00027608,3]
[368451200,1751182243432,-1686.82,0.00027608,3]
[368451203,1751182243441,-490.0,0.00027608,3]
[368451206,1751182243450,-2708.06,0.00027608,3]
[368451209,1751182243460,-1662.59,0.00027608,3]
[368451212,1751182243469,-490.0,0.00027608,3]
[368451214,1751182243478,-1933.66,0.00027608,3]
[368451216,1751182243488,-490.0,0.00027608,3]
[368451218,1751182243497,-3197.92,0.00027608,3]
[368451220,1751182243506,-190.33446528,0.00027608,2]
[368451222,1751182243515,-382.05658395,0.00027612,2]
[368451224,1751182243525,-490.0,0.00027616,3]
[368451226,1751182243534,-491.0647325,0.00027616,3]
[368451228,1751182243543,-490.0,0.00027616,3]
[368451230,1751182243552,-516.31,0.00027616,3]
[368451232,1751182243562,-490.0,0.00027616,3]
[368451234,1751182243571,-507.33175459,0.00027616,3]
[368451236,1751182243580,-490.0,0.00027616,3]
[368451238,1751182243589,-490.0,0.00027616,3]
[368451240,1751182243599,-490.0,0.00027616,3]
[368451242,1751182243608,-490.0,0.00027616,3]
[368451245,1751182243618,-490.0,0.00027616,3]
[368451247,1751182243627,-490.0,0.00027616,3]
[368451249,1751182243636,-490.0,0.00027616,3]
[368451251,1751182243645,-964.19,0.00027616,3]
[368451252,1751182243655,-2951.27,0.00027616,3]
[368451254,1751182243664,-385.41906306,0.00027616,3]
[368451257,1751182243674,-2756.58,0.00027616,3]
[368451259,1751182243683,-3180.03,0.00027616,3]
[368451261,1751182243693,-6822.42,0.00027616,3]
[368451262,1751182243702,-1477.92,0.00027616,3]
[368451265,1751182243712,-2328.17,0.00027616,3]
[368451266,1751182243721,-2515.35,0.00027616,3]
[368451269,1751182243731,-552.37882457,0.00027616,3]
[368451271,1751182243740,-590.04,0.00027616,3]
[368451273,1751182243749,-3777.15,0.00027616,3]
[368451275,1751182243759,-500.0,0.00027616,3]
[368451277,1751182243768,-2074.62,0.00027616,3]
[368451278,1751182243777,-4278.36,0.00027616,3]
[368451281,1751182243787,-4385.06,0.00027616,3]
[368451283,1751182243796,-2735.66,0.00027616,3]
[368451285,1751182243806,-2135.46,0.00027616,3]
[368451287,1751182243815,-500.0,0.00027616,3]
[368451289,1751182243824,-4138.99,0.00027616,3]
[368451291,1751182243833,-4694.82,0.00027616,3]
[368451294,1751182243843,-3835.69,0.00027616,3]
[368451297,1751182243852,-3587.26,0.00027616,3]
[368451300,1751182243861,-490.0,0.00027617,3]
[368451303,1751182243870,-1142.37,0.00027617,3]
[368451306,1751182243879,-490.0,0.00027617,3]
[368451308,1751182243890,-859.15,0.00027617,3]
[368451310,1751182243899,-490.0,0.00027617,3]
[368451312,1751182243908,-490.0,0.00027617,3]
[368451314,1751182243919,-686.69,0.00027617,3]
[368451316,1751182243928,-513.99166429,0.00027617,3]
[368451318,1751182243937,-490.0,0.00027617,3]
[368451320,1751182243946,-490.0,0.00027617,3]
[368451322,1751182243956,-1243.41,0.00027617,3]
[368451325,1751182243964,-610.42,0.00027617,3]
[368451327,1751182243973,-490.0,0.00027617,3]
[368451329,1751182243982,-502.92973013,0.00027617,3]
[368451331,1751182243991,-490.0,0.00027617,3]
[368451333,1751182244000,-6449.94,0.00027617,3]
[368451335,1751182244009,-2428.46,0.00027617,3]
[368451336,1751182244019,-2302.8,0.00027617,3]
[368451337,1751182244029,-2237.95,0.00027617,3]
[368451338,1751182244038,-1270.62,0.00027617,3]
[368451339,1751182244047,-490.0,0.00027617,3]
[368451340,1751182244057,-3063.2,0.00027617,3]
[368451341,1751182244066,-3728.98,0.00027617,3]
[368451342,1751182244075,-1956.9,0.00027617,3]
[368451343,1751182244086,-490.0,0.00027617,3]
[368451344,1751182244095,-3352.59,0.00027617,3]
[368451345,1751182244104,-2398.93,0.00027617,3]
[368451346,1751182244114,-760.07,0.00027617,3]
[368451347,1751182244123,-1679.51,0.00027617,3]